{"text_format":"1","workbook":"xlsx","n_sheets":5,"sheets":["Feuil1","Feuil2","Feuil3","Feuil4","Feuil5"],"not_rendered":{"charts":0,"images":0,"macros":1,"external_links":0,"defined_names":0,"comments":0,"pivot_tables":0},"unopened":[],"bounds":{"document_bytes":16777216,"sheet_cells":100000,"rows_first":2000,"rows_last":500,"rows_between":2000,"halvings":0,"cell_chars":16384,"cell_head_chars":4096},"cells_cut":0,"cells_raw":0,"read":"whole","date_system":"1900"}

{"sheet":"Feuil1","index":0,"n_rows":22,"n_cols":16,"rows_kept":22,"cut":false,"hidden":false,"merged":[[5,8,6,8],[4,5,4,7],[6,12,9,12],[6,13,9,13],[6,14,9,14],[5,1,6,1],[5,2,6,2],[5,3,6,3],[5,4,6,4],[5,5,6,5],[5,6,6,6],[5,7,6,7]]}
[]
[null,null,null,null,null,null,null,null,null,null,null,null,null,null,null,"Pour classer le tableau des résultats"]
[null,null,null,null,null,null,null,null,null,null,null,null,null,null,null,"après saisie des données :"]
[]
[null,null,null,null,null,"COOPTE",null,null,null,null,null,null,null,null,null,"Touche de raccourci du clavier: Ctrl+m"]
[null,"NOM","Prénom","Poste","Date Cooptation","NOM/PRENOM","Suite","Commentaire","SCORE"]
[null,null,null,null,null,null,null,null,null,null,null,null,"NOM","SCORE TOTAL","CLASSEMENT"]
[null,"WILLY",null,"CR","2018-09-04",null,"Contrat signe",null,{"$f":"IF(G8=\"Periode essai\",\"1\",IF(G8=\"Periode essai Réussie\",\"1\",IF(G8=\"Contrat signe\",\"0,5\",IF(G8=\"CTRT SIGNE + PE.R\",\"1,5\",IF(ISBLANK(G8),\"\")))))","v":"0,5"}]
[null,"POLO",null,null,null,null,"CTRT SIGNE + PE.R",null,{"$f":"IF(G9=\"Periode essai\",\"1\",IF(G9=\"Periode essai Réussie\",\"1\",IF(G9=\"Contrat signe\",\"0,5\",IF(G9=\"CTRT SIGNE + PE.R\",\"1,5\",IF(ISBLANK(G9),\"\")))))","v":"1,5"}]
[null,"RAISIN",null,null,null,null,"CTRT SIGNE + PE.R",null,{"$f":"IF(G10=\"Periode essai\",\"1\",IF(G10=\"Periode essai Réussie\",\"1\",IF(G10=\"Contrat signe\",\"0,5\",IF(G10=\"CTRT SIGNE + PE.R\",\"1,5\",IF(ISBLANK(G10),\"\")))))","v":"1,5"}]
[null,"JEAN",null,null,null,null,"CTRT SIGNE + PE.R",null,"1,5",null,null,null,"RAISIN",{"$f":"+SUMIF($B$8:$I$28,M11,$I$8:$I$28)","v":0},{"$f":"+RANK(N11,$M$11:$N$20)","v":1}]
[null,"JACQUES",null,null,null,null,"CTRT SIGNE + PE.R",null,"1,5",null,null,null,"JULES",{"$f":"+SUMIF($B$8:$I$28,M12,$I$8:$I$28)","v":0},{"$f":"+RANK(N12,$M$11:$N$20)","v":1}]
[null,"PIERRE",null,null,null,null,"CTRT SIGNE + PE.R",null,"1,5",null,null,null,"POLO",{"$f":"+SUMIF($B$8:$I$28,M13,$I$8:$I$28)","v":0},{"$f":"+RANK(N13,$M$11:$N$20)","v":1}]
[null,"PAUL",null,null,null,null,"CTRT SIGNE + PE.R",null,"1,5",null,null,null,"PIERRE",{"$f":"+SUMIF($B$8:$I$28,M14,$I$8:$I$28)","v":0},{"$f":"+RANK(N14,$M$11:$N$20)","v":1}]
[null,"POLO",null,null,null,null,"CTRT SIGNE + PE.R",null,"1,5",null,null,null,"JACQUES",{"$f":"+SUMIF($B$8:$I$28,M15,$I$8:$I$28)","v":0},{"$f":"+RANK(N15,$M$11:$N$20)","v":1}]
[null,"RAISIN",null,null,null,null,"CTRT SIGNE + PE.R",null,"1,5",null,null,null,"ANATOLE",{"$f":"+SUMIF($B$8:$I$28,M16,$I$8:$I$28)","v":0},{"$f":"+RANK(N16,$M$11:$N$20)","v":1}]
[null,"JULES",null,null,null,null,"CTRT SIGNE + PE.R",null,"1,5",null,null,null,"WILLY",{"$f":"+SUMIF($B$8:$I$28,M17,$I$8:$I$28)","v":0},{"$f":"+RANK(N17,$M$11:$N$20)","v":1}]
[null,"ANATOLE",null,null,null,null,"CTRT SIGNE + PE.R",null,"1,5",null,null,null,"BARNABE",{"$f":"+SUMIF($B$8:$I$28,M18,$I$8:$I$28)","v":0},{"$f":"+RANK(N18,$M$11:$N$20)","v":1}]
[null,"BARNABE",null,null,null,null,"CTRT SIGNE + PE.R",null,"1,5",null,null,null,"PAUL",{"$f":"+SUMIF($B$8:$I$28,M19,$I$8:$I$28)","v":0},{"$f":"+RANK(N19,$M$11:$N$20)","v":1}]
[null,"POLO",null,null,null,null,"CTRT SIGNE + PE.R",null,"1,5",null,null,null,"JEAN",{"$f":"+SUMIF($B$8:$I$28,M20,$I$8:$I$28)","v":0},{"$f":"+RANK(N20,$M$11:$N$20)","v":1}]
[]
[null,null,null,null,null,null,null,null,null,null,null,null,null,{"$f":"SUM(N11:N21)","v":0}]

{"sheet":"Feuil2","index":1,"n_rows":3,"n_cols":2,"rows_kept":3,"cut":false,"hidden":false,"merged":[]}
[null,"PT"]
["Contrat signe",0.5]
["CTRT SIGNE + PE.R",1.5]

{"sheet":"Feuil3","index":2,"n_rows":0,"n_cols":0,"rows_kept":0,"cut":false,"hidden":false,"merged":[]}

{"sheet":"Feuil4","index":3,"n_rows":0,"n_cols":0,"rows_kept":0,"cut":false,"hidden":false,"merged":[]}

{"sheet":"Feuil5","index":4,"n_rows":0,"n_cols":0,"rows_kept":0,"cut":false,"hidden":false,"merged":[]}